[Event "ESCC-65 2022"]
[Site "Lublin"]
[Date "2022.07.13"]
[Round "9.8"]
[White "Neumann, Joachim"]
[Black "Severcan, Sedat Sabri"]
[Result "1-0"]
[ECO "A06"]
[WhiteElo "2082"]
[BlackElo "1849"]
[Annotator "ChessBase"]
[PlyCount "111"]
[EventDate "2022.07.05"]
[EventType "swiss"]
[EventCountry "POL"]
[SourceTitle "playchess.com"]
[Source "ChessBase"]
[SourceQuality "1"]
[TimeControl "40/5400+30:1800+30"]

1. Nf3 {[%emt 0:00:05]} d5 {[%emt 0:00:00]} 2. g3 {[%emt 0:00:37]} c6 {[%emt 0:00:00]} 3. Bg2 {[%emt 0:00:26]} Nf6 {[%emt 0:00:08]} 4. b3 {[%emt 0:02:07]} g6 {[%emt 0:00:08]} 5. Bb2 {[%emt 0:00:23]} Bg7 {[%emt 0:00:09]} 6. c4 {[%emt 0:01:20]} O-O {[%emt 0:01:09]} 7. O-O {[%emt 0:00:01]} a5 {[%emt 0:09:47]} 8. d3 {[%emt 0:10:50]} Re8 {[%emt 0:06:00]} 9. Nbd2 {[%emt 0:05:26]} Nbd7 {[%emt 0:08:26]} 10. cxd5 {[%emt 0:18:44]} cxd5 {[%emt 0:02:08]} 11. d4 {[%emt 0:07:40]} h6 {[%emt 0:12:24]} 12. Rc1 {[%emt 0:06:04]} Ra6 {[%emt 0:06:58]} 13. Qc2 {[%emt 0:03:45]} Nf8 {[%emt 0:11:34]} 14. Ne5 {[%emt 0:06:23]} Ne6 {[%emt 0:03:06]} 15. Qd3 {[%emt 0:03:43]} Bd7 {[%emt 0:11:30]} 16. a4 {[%emt 0:02:12]} Ra8 {[%emt 0:01:59]} 17. Rc2 {[%emt 0:00:47]} Rc8 {[%emt 0:00:08]} 18. Rxc8 {[%emt 0:03:18]} Qxc8 {[%emt 0:03:01]} 19. Rc1 {[%emt 0:00:06]} Qd8 {[%emt 0:00:42]} 20. Qc3 {[%emt 0:03:44]} h5 {[%emt 0:02:24]} 21. e3 {[%emt 0:01:04]} b5 {[%emt 0:05:35]} 22. Nxd7 Qxd7 {[%emt 0:00:09]} 23. Qxa5 {[%emt 0:02:08]} bxa4 {[%emt 0:00:14]} 24. Qxa4 {[%emt 0:00:39]} Qb7 {[%emt 0:02:46]} 25. Qc6 {[%emt 0:03:18]} Qxc6 {[%emt 0:02:12]} 26. Rxc6 {[%emt 0:00:02]} Ra8 {[%emt 0:00:19]} 27. Rc1 {[%emt 0:08:58]} Ra2 {[%emt 0:01:39]} 28. Bc3 {[%emt 0:00:38]} Ng5 {[%emt 0:00:40]} 29. h4 {[%emt 0:01:53]} Nge4 {[%emt 0:02:37]} 30. Nxe4 {[%emt 0:01:46]} dxe4 {[%emt 0:00:16]} 31. Rb1 {[%emt 0:01:02]} Nd5 {[%emt 0:01:02]} 32. Be1 {[%emt 0:00:01]} f5 {[%emt 0:00:42]} 33. Bf1 {[%emt 0:00:56]} e6 {[%emt 0:00:30]} 34. b4 {[%emt 0:00:08]} Bf8 {[%emt 0:01:37]} 35. b5 {[%emt 0:00:48]} Ra7 {[%emt 0:00:22]} 36. Bc4 {[%emt 0:01:21]} Kf7 {[%emt 0:00:21]} 37. b6 {[%emt 0:04:01]} Rb7 {[%emt 0:00:05]} 38. Ba5 {[%emt 0:00:02]} Bd6 {[%emt 0:01:27]} 39. Ba6 {[%emt 0:00:13]} Re7 {[%emt 0:00:00]} 40. b7 {[%emt 0:00:00]} Bb8 {[%emt 0:00:00]} 41. Bb5 {[%emt 0:04:32]} Kg7 {[%emt 0:05:10]} 42. Bc6 {[%emt 0:00:19]} Rf7 {[%emt 0:01:26]} 43. Kf1 {[%emt 0:06:47]} Rf8 {[%emt 0:08:46]} 44. Rb5 {[%emt 0:10:09]} Nc7 {[%emt 0:07:38]} 45. Bxc7 {[%emt 0:02:44]} Bxc7 {[%emt 0:00:02]} 46. Bd7 {[%emt 0:00:04]} Kf7 {[%emt 0:04:27]} 47. Bc8 {[%emt 0:01:57]} Bb8 {[%emt 0:00:19]} 48. Ra5 {[%emt 0:02:46]} Ke7 {[%emt 0:00:30]} 49. Ra8 {[%emt 0:00:32]} Bc7 {[%emt 0:00:26]} 50. Bxe6 {[%emt 0:02:36]} Rb8 {[%emt 0:07:29]} 51. Bc8 {[%emt 0:00:16]} Kf7 {[%emt 0:01:11]} 52. Ra6 {[%emt 0:00:09]} Bd8 {[%emt 0:00:43]} 53. Ke2 {[%emt 0:00:15]} g5 {[%emt 0:00:20]} 54. Rh6 {[%emt 0:01:45]} gxh4 {[%emt 0:00:11]} 55. gxh4 {[%emt 0:00:10]} Bxh4 {[%emt 0:00:49]} 56. Rxh5 1-0

[Event "ESCC-65 2022"]
[Site "Lublin"]
[Date "2022.07.13"]
[Round "9.9"]
[White "Rak, Tomasz"]
[Black "Wagner-Michel, Annett"]
[Result "1/2-1/2"]
[ECO "D02"]
[WhiteElo "1887"]
[BlackElo "2056"]
[Annotator "ChessBase"]
[PlyCount "162"]
[EventDate "2022.07.05"]
[EventType "swiss"]
[EventCountry "POL"]
[SourceTitle "playchess.com"]
[Source "ChessBase"]
[SourceQuality "1"]
[TimeControl "40/5400+30:1800+30"]

1. Nf3 {[%emt 0:00:01]} d5 {[%emt 0:00:09]} 2. d4 {[%emt 0:00:02]} Nf6 {[%emt 0:00:11]} 3. Bf4 {[%emt 0:00:04]} e6 {[%emt 0:00:13]} 4. Nbd2 {[%emt 0:00:05]} c5 {[%emt 0:00:59]} 5. e3 {[%emt 0:00:03]} Bd6 {[%emt 0:00:56]} 6. Bg3 {[%emt 0:00:05]} O-O {[%emt 0:00:29]} 7. c3 {[%emt 0:00:13]} Nc6 {[%emt 0:02:08]} 8. Bd3 {[%emt 0:00:33]} c4 {[%emt 0:02:29]} 9. Bc2 {[%emt 0:00:07]} b5 {[%emt 0:00:31]} 10. a3 {[%emt 0:00:36]} a5 {[%emt 0:01:23]} 11. Qe2 {[%emt 0:01:09]} g6 {[%emt 0:04:50]} 12. e4 {[%emt 0:01:42]} dxe4 {[%emt 0:03:25]} 13. Nxe4 {[%emt 0:02:09]} Nxe4 {[%emt 0:02:44]} 14. Qxe4 {[%emt 0:02:28]} Bb7 {[%emt 0:03:34]} 15. Qe3 {[%emt 0:03:26]} Re8 {[%emt 0:06:27]} 16. O-O {[%emt 0:02:01]} Ne7 {[%emt 0:16:57]} 17. Be5 {[%emt 0:17:22]} Nd5 {[%emt 0:25:32]} 18. Qh6 {[%emt 0:03:48]} Bf8 {[%emt 0:00:41]} 19. Qh3 {[%emt 0:00:43]} f6 {[%emt 0:00:47]} 20. Bg3 {[%emt 0:00:15]} Bc8 {[%emt 0:06:57]} 21. Rfe1 {[%emt 0:00:49]} Ra6 {[%emt 0:02:26]} 22. Qh4 {[%emt 0:01:18]} Bg7 {[%emt 0:03:53]} 23. Nd2 {[%emt 0:01:53]} f5 {[%emt 0:02:41]} 24. Qxd8 {[%emt 0:00:42]} Rxd8 {[%emt 0:00:02]} 25. Be5 {[%emt 0:02:21]} Bh6 {[%emt 0:02:31]} 26. Nf1 {[%emt 0:04:56]} Bd7 {[%emt 0:00:22]} 27. Ne3 {[%emt 0:06:33]} Nxe3 {[%emt 0:00:32]} 28. fxe3 {[%emt 0:00:04]} Rda8 {[%emt 0:00:28]} 29. e4 {[%emt 0:12:23]} b4 {[%emt 0:00:30]} 30. axb4 {[%emt 0:03:02]} axb4 {[%emt 0:00:03]} 31. Rxa6 {[%emt 0:01:00]} Rxa6 {[%emt 0:00:02]} 32. cxb4 {[%emt 0:00:30]} Bd2 {[%emt 0:01:36]} 33. Rd1 {[%emt 0:00:21]} Bxb4 {[%emt 0:00:08]} 34. d5 {[%emt 0:01:19]} Bc5+ {[%emt 0:00:21]} 35. Bd4 {[%emt 0:01:18]} Bxd4+ {[%emt 0:02:11]} 36. Rxd4 {[%emt 0:00:06]} Ra1+ {[%emt 0:00:04]} 37. Kf2 {[%emt 0:01:03]} Ra2 {[%emt 0:00:05]} 38. Rxc4 {[%emt 0:01:05]} Rxb2 {[%emt 0:00:07]} 39. Ke3 {[%emt 0:03:01]} fxe4 {[%emt 0:01:35]} 40. Bxe4 {[%emt 0:00:00]} exd5 {[%emt 0:00:00]} 41. Bxd5+ {[%emt 0:01:14]} Kf8 {[%emt 0:02:49]} 42. Rf4+ {[%emt 0:00:15]} Ke8 {[%emt 0:03:41]} 43. h4 {[%emt 0:01:26]} Bb5 {[%emt 0:03:36]} 44. g4 {[%emt 0:01:05]} Re2+ {[%emt 0:01:35]} 45. Kd4 {[%emt 0:00:11]} Bd7 {[%emt 0:02:20]} 46. Kc5 {[%emt 0:05:42]} Be6 {[%emt 0:02:17]} 47. Bf3 {[%emt 0:00:57]} Rd2 {[%emt 0:01:05]} 48. Rb4 {[%emt 0:04:05]} Ke7 {[%emt 0:04:27]} 49. g5 {[%emt 0:03:47]} Rd7 {[%emt 0:05:44]} 50. Bc6 {[%emt 0:01:08]} Ra7 {[%emt 0:03:24]} 51. Rb8 {[%emt 0:04:11]} Kf7 {[%emt 0:03:42]} 52. Kd6 {[%emt 0:00:51]} Ba2 {[%emt 0:01:12]} 53. Rb2 {[%emt 0:04:02]} Kg7 {[%emt 0:01:03]} 54. Bd7 {[%emt 0:00:29]} Bf7 {[%emt 0:00:54]} 55. Rf2 {[%emt 0:01:03]} Ra3 {[%emt 0:00:32]} 56. Re2 {[%emt 0:01:01]} Rd3+ {[%emt 0:02:06]} 57. Ke7 {[%emt 0:00:12]} Bc4 {[%emt 0:00:42]} 58. Re4 {[%emt 0:01:07]} Bd5 {[%emt 0:00:18]} 59. Re5 {[%emt 0:02:48]} Bg8 {[%emt 0:01:13]} 60. Kd8 {[%emt 0:04:13]} Rf3 {[%emt 0:00:29]} 61. Re7+ {[%emt 0:02:41]} Rf7 {[%emt 0:00:10]} 62. Re4 {[%emt 0:00:13]} Rf8+ {[%emt 0:00:12]} 63. Ke7 {[%emt 0:00:23]} Rf7+ {[%emt 0:00:05]} 64. Kd6 {[%emt 0:00:10]} Rf2 {[%emt 0:00:36]} 65. Bb5 {[%emt 0:01:15]} Bb3 {[%emt 0:00:19]} 66. Rb4 {[%emt 0:00:51]} Bg8 {[%emt 0:02:03]} 67. Ba6 {[%emt 0:00:33]} Rf8 {[%emt 0:00:29]} 68. Rb7+ {[%emt 0:00:26]} Rf7 {[%emt 0:00:02]} 69. Rb8 {[%emt 0:00:40]} Rf4 {[%emt 0:00:11]} 70. Rb7+ Rf7 {[%emt 0:00:02]} 71. Rb4 {[%emt 0:00:43]} Rf8 {[%emt 0:00:28]} 72. Be2 {[%emt 0:00:59]} h6 {[%emt 0:00:33]} 73. Bc4 {[%emt 0:01:58]} Bxc4 {[%emt 0:01:12]} 74. Rxc4 {[%emt 0:00:06]} hxg5 {[%emt 0:00:28]} 75. hxg5 {[%emt 0:00:02]} Rf7 {[%emt 0:00:36]} 76. Re4 {[%emt 0:00:28]} Rf5 {[%emt 0:00:46]} 77. Re7+ {[%emt 0:00:16]} Kg8 {[%emt 0:00:38]} 78. Re5 {[%emt 0:00:39]} Rf2 {[%emt 0:00:25]} 79. Rc5 {[%emt 0:00:46]} Re2 {[%emt 0:00:32]} 80. Rc7 {[%emt 0:00:24]} Re3 {[%emt 0:00:11]} 81. Re7 {[%emt 0:00:40]} Rg3 {[%emt 0:00:29]} 1/2-1/2

[Event "ESCC-65 2022"]
[Site "Lublin"]
[Date "2022.07.13"]
[Round "9.10"]
[White "Hewson, Brian W R"]
[Black "Scowen, Roger S"]
[Result "1-0"]
[ECO "D35"]
[WhiteElo "2049"]
[BlackElo "1864"]
[Annotator "ChessBase"]
[PlyCount "73"]
[EventDate "2022.07.05"]
[EventType "swiss"]
[EventCountry "POL"]
[SourceTitle "playchess.com"]
[Source "ChessBase"]
[SourceQuality "1"]
[TimeControl "40/5400+30:1800+30"]

1. c4 {[%emt 0:00:06]} e6 {[%emt 0:00:17]} 2. Nc3 {[%emt 0:01:15]} d5 {[%emt 0:01:09]} 3. d4 {[%emt 0:00:29]} Nf6 {[%emt 0:00:28]} 4. cxd5 {[%emt 0:00:54]} exd5 {[%emt 0:00:20]} 5. Bg5 {[%emt 0:00:04]} Be7 {[%emt 0:00:29]} 6. e3 {[%emt 0:00:06]} O-O {[%emt 0:00:42]} 7. Bd3 {[%emt 0:00:09]} h6 {[%emt 0:03:39]} 8. Bh4 {[%emt 0:00:10]} c6 {[%emt 0:01:39]} 9. Nge2 {[%emt 0:01:18]} Ne4 {[%emt 0:05:37]} 10. Bxe7 {[%emt 0:01:14]} Qxe7 {[%emt 0:00:06]} 11. Nxe4 {[%emt 0:33:50]} dxe4 {[%emt 0:03:45]} 12. Bc2 {[%emt 0:00:00]} Bg4 {[%emt 0:02:08]} 13. Qd2 {[%emt 0:06:10]} Bxe2 {[%emt 0:01:04]} 14. Qxe2 {[%emt 0:01:38]} Nd7 {[%emt 0:01:14]} 15. O-O {[%emt 0:05:49]} f5 {[%emt 0:20:50]} 16. Rfd1 {[%emt 0:10:43]} Nb6 {[%emt 0:02:35]} 17. Bb3+ {[%emt 0:00:37]} Nd5 {[%emt 0:04:33]} 18. Rac1 {[%emt 0:00:16]} Rad8 {[%emt 0:05:21]} 19. g3 {[%emt 0:00:25]} Kh7 {[%emt 0:02:35]} 20. Rc5 {[%emt 0:04:23]} Rf6 21. Bxd5 {[%emt 0:00:47]} Rxd5 {[%emt 0:08:09]} 22. Rxd5 {[%emt 0:05:00]} cxd5 {[%emt 0:00:23]} 23. Qb5 {[%emt 0:01:28]} Rd6 {[%emt 0:02:49]} 24. Rc1 {[%emt 0:02:36]} Qd7 {[%emt 0:00:52]} 25. Qxd7 {[%emt 0:03:13]} Rxd7 {[%emt 0:00:49]} 26. b4 {[%emt 0:01:09]} Kg6 {[%emt 0:00:23]} 27. a4 {[%emt 0:00:52]} Kf6 {[%emt 0:03:10]} 28. h4 {[%emt 0:03:19]} Ke6 {[%emt 0:01:48]} 29. Kg2 {[%emt 0:00:52]} Kd6 {[%emt 0:02:08]} 30. h5 {[%emt 0:00:36]} g5 {[%emt 0:09:52]} 31. hxg6 {[%emt 0:00:16]} Rg7 {[%emt 0:00:04]} 32. Rc8 {[%emt 0:01:25]} Rxg6 {[%emt 0:00:23]} 33. Rh8 {[%emt 0:01:46]} f4 {[%emt 0:09:07]} 34. exf4 {[%emt 0:00:18]} Re6 {[%emt 0:03:32]} 35. f5 {[%emt 0:00:09]} Rf6 {[%emt 0:03:17]} 36. g4 {[%emt 0:00:07]} Ke7 {[%emt 0:01:09]} 37. Rh7+ {[%emt 0:00:19]} 1-0

[Event "ESCC-65 2022"]
[Site "Lublin"]
[Date "2022.07.13"]
[Round "9.11"]
[White "Stokes, Michael"]
[Black "Patola, Eero"]
[Result "1/2-1/2"]
[ECO "B01"]
[WhiteElo "2024"]
[BlackElo "1810"]
[Annotator "ChessBase"]
[PlyCount "119"]
[EventDate "2022.07.05"]
[EventType "swiss"]
[EventCountry "POL"]
[SourceTitle "playchess.com"]
[Source "ChessBase"]
[SourceQuality "1"]
[TimeControl "40/5400+30:1800+30"]

1. e4 {[%emt 0:00:04]} d5 {[%emt 0:00:00]} 2. exd5 {[%emt 0:00:05]} Nf6 {[%emt 0:00:00]} 3. Nf3 {[%emt 0:00:04]} Nxd5 {[%emt 0:00:01]} 4. d4 {[%emt 0:00:04]} g6 {[%emt 0:00:17]} 5. c4 {[%emt 0:00:06]} Nb6 {[%emt 0:00:06]} 6. Nc3 {[%emt 0:00:06]} c6 {[%emt 0:00:19]} 7. Be2 {[%emt 0:01:06]} Bg7 {[%emt 0:00:18]} 8. a4 {[%emt 0:00:20]} Bg4 {[%emt 0:00:33]} 9. Be3 {[%emt 0:10:43]} Bxf3 {[%emt 0:02:05]} 10. gxf3 {[%emt 0:00:03]} O-O {[%emt 0:04:03]} 11. a5 {[%emt 0:01:02]} Nc8 {[%emt 0:02:57]} 12. Qd2 {[%emt 0:02:22]} Nd6 {[%emt 0:03:01]} 13. Bd3 {[%emt 0:01:07]} Ne8 {[%emt 0:02:10]} 14. Ne2 {[%emt 0:02:26]} Nc7 {[%emt 0:03:19]} 15. h4 {[%emt 0:01:33]} h5 {[%emt 0:01:55]} 16. Rg1 {[%emt 0:04:01]} e5 {[%emt 0:04:46]} 17. Bg5 {[%emt 0:05:21]} Qd7 {[%emt 0:02:11]} 18. Ng3 {[%emt 0:04:46]} Ne6 {[%emt 0:08:37]} 19. Nxh5 {[%emt 0:04:31]} Nxd4 {[%emt 0:00:51]} 20. Qe3 {[%emt 0:05:38]} Qh3 {[%emt 0:06:14]} 21. Ng3 {[%emt 0:09:54]} Nd7 {[%emt 0:10:15]} 22. h5 {[%emt 0:02:27]} Nc5 {[%emt 0:00:57]} 23. O-O-O {[%emt 0:05:44]} Nxd3+ {[%emt 0:01:42]} 24. Qxd3 {[%emt 0:02:01]} Qe6 {[%emt 0:02:28]} 25. h6 {[%emt 0:03:18]} Bf6 {[%emt 0:01:06]} 26. Ne4 {[%emt 0:05:51]} Bxg5+ {[%emt 0:01:50]} 27. Rxg5 {[%emt 0:00:18]} b5 {[%emt 0:02:20]} 28. Nc5 {[%emt 0:04:42]} Qf6 {[%emt 0:10:04]} 29. Rg3 {[%emt 0:03:11]} Rad8 {[%emt 0:01:19]} 30. Rdg1 {[%emt 0:01:02]} Kh7 {[%emt 0:01:45]} 31. Ne4 {[%emt 0:01:11]} Qf4+ {[%emt 0:00:36]} 32. Kb1 {[%emt 0:00:53]} Nf5 {[%emt 0:00:45]} 33. Qe2 {[%emt 0:09:12]} Nxg3 {[%emt 0:04:12]} 34. fxg3 {[%emt 0:00:07]} Qf5 {[%emt 0:04:13]} 35. g4 {[%emt 0:00:14]} Qf4 {[%emt 0:00:47]} 36. c5 {[%emt 0:02:24]} f5 {[%emt 0:01:08]} 37. gxf5 {[%emt 0:00:28]} Rxf5 {[%emt 0:01:13]} 38. Qg2 {[%emt 0:01:32]} Rg8 {[%emt 0:01:39]} 39. Ng5+ {[%emt 0:01:55]} Rxg5 {[%emt 0:00:00]} 40. Qxg5 {[%emt 0:00:00]} Qxg5 {[%emt 0:00:00]} 41. Rxg5 Re8 {[%emt 0:03:31]} 42. Kc2 {[%emt 0:01:15]} Kxh6 {[%emt 0:00:15]} 43. Rg4 {[%emt 0:00:16]} g5 {[%emt 0:01:50]} 44. Kd3 {[%emt 0:01:11]} Kg6 {[%emt 0:00:41]} 45. Ke4 {[%emt 0:00:41]} Kf6 {[%emt 0:00:29]} 46. Rg2 {[%emt 0:00:59]} Rd8 {[%emt 0:00:36]} 47. Rh2 {[%emt 0:00:16]} Rd4+ {[%emt 0:01:00]} 48. Ke3 {[%emt 0:00:06]} Kg6 {[%emt 0:04:11]} 49. Rh8 {[%emt 0:00:24]} Rc4 {[%emt 0:00:53]} 50. Ra8 {[%emt 0:01:06]} Rxc5 {[%emt 0:00:48]} 51. Rxa7 {[%emt 0:00:14]} Rc2 {[%emt 0:01:56]} 52. Rc7 {[%emt 0:01:03]} Rxb2 {[%emt 0:02:12]} 53. Rxc6+ {[%emt 0:00:18]} Kf5 {[%emt 0:02:02]} 54. a6 {[%emt 0:00:29]} Ra2 {[%emt 0:00:55]} 55. Rb6 {[%emt 0:00:21]} Ra3+ {[%emt 0:01:37]} 56. Kf2 {[%emt 0:00:23]} b4 {[%emt 0:00:31]} 57. Rxb4 {[%emt 0:00:11]} Rxa6 {[%emt 0:00:15]} 58. Kg3 {[%emt 0:01:55]} Rd6 {[%emt 0:00:33]} 59. Rb3 {[%emt 0:01:27]} Rd4 {[%emt 0:02:28]} 60. Rb8 {[%emt 0:01:05]} 1/2-1/2

[Event "ESCC-65 2022"]
[Site "Lublin"]
[Date "2022.07.13"]
[Round "9.12"]
[White "Plesiuk, Jan"]
[Black "Gasik, Piotr"]
[Result "1/2-1/2"]
[ECO "A85"]
[WhiteElo "1573"]
[BlackElo "1990"]
[Annotator "ChessBase"]
[PlyCount "140"]
[EventDate "2022.07.05"]
[EventType "swiss"]
[EventCountry "POL"]
[SourceTitle "playchess.com"]
[Source "ChessBase"]
[SourceQuality "1"]
[TimeControl "40/5400+30:1800+30"]

1. d4 {[%emt 0:00:04]} f5 {[%emt 0:00:05]} 2. c4 {[%emt 0:01:25]} Nf6 {[%emt 0:00:08]} 3. Nc3 {[%emt 0:00:06]} g6 {[%emt 0:00:06]} 4. Bf4 {[%emt 0:03:13]} Bg7 {[%emt 0:00:06]} 5. f3 {[%emt 0:01:37]} O-O {[%emt 0:00:31]} 6. Qd2 {[%emt 0:01:44]} d6 {[%emt 0:01:15]} 7. d5 {[%emt 0:00:25]} e5 {[%emt 0:03:18]} 8. Bh6 {[%emt 0:01:36]} a5 {[%emt 0:03:13]} 9. Bxg7 {[%emt 0:03:00]} Kxg7 {[%emt 0:01:40]} 10. e4 {[%emt 0:05:32]} f4 {[%emt 0:01:12]} 11. g3 {[%emt 0:03:18]} Nh5 {[%emt 0:02:40]} 12. Qg2 {[%emt 0:05:16]} Na6 {[%emt 0:03:33]} 13. g4 {[%emt 0:02:17]} Nf6 {[%emt 0:02:51]} 14. h4 {[%emt 0:00:31]} Nc5 {[%emt 0:05:25]} 15. h5 {[%emt 0:06:29]} g5 {[%emt 0:00:43]} 16. Nh3 {[%emt 0:08:25]} h6 {[%emt 0:00:48]} 17. Qc2 {[%emt 0:01:03]} Bd7 {[%emt 0:05:37]} 18. Nf2 {[%emt 0:00:26]} Be8 {[%emt 0:01:34]} 19. b3 {[%emt 0:11:44]} Nfd7 {[%emt 0:03:09]} 20. Be2 {[%emt 0:00:24]} Na6 {[%emt 0:01:05]} 21. a3 {[%emt 0:00:53]} Ndc5 {[%emt 0:00:58]} 22. Rb1 {[%emt 0:00:42]} b6 {[%emt 0:06:51]} 23. O-O {[%emt 0:00:52]} Qd7 {[%emt 0:00:32]} 24. b4 {[%emt 0:06:00]} Nb7 {[%emt 0:01:47]} 25. Rfd1 {[%emt 0:08:06]} Bf7 {[%emt 0:00:21]} 26. Bd3 {[%emt 0:05:06]} Rfc8 {[%emt 0:01:22]} 27. Qe2 {[%emt 0:05:03]} Nb8 {[%emt 0:00:24]} 28. Bc2 {[%emt 0:01:22]} Qd8 {[%emt 0:00:45]} 29. Ba4 {[%emt 0:00:59]} c5 {[%emt 0:08:25]} 30. b5 {[%emt 0:01:40]} Nd7 {[%emt 0:00:27]} 31. Rd2 {[%emt 0:01:38]} Nf6 {[%emt 0:00:05]} 32. Bd1 {[%emt 0:00:45]} Qe7 {[%emt 0:01:48]} 33. a4 {[%emt 0:00:40]} Rh8 {[%emt 0:07:38]} 34. Qf1 {[%emt 0:00:24]} Rag8 {[%emt 0:00:12]} 35. Qh3 {[%emt 0:00:49]} Kf8 {[%emt 0:00:56]} 36. Kf1 {[%emt 0:01:21]} Ke8 {[%emt 0:01:12]} 37. Ke2 {[%emt 0:00:37]} Kd8 {[%emt 0:00:36]} 38. Kd3 {[%emt 0:00:17]} Kc7 {[%emt 0:00:24]} 39. Be2 {[%emt 0:00:17]} Qd7 {[%emt 0:03:32]} 40. Rg1 {[%emt 0:00:00]} Nd8 {[%emt 0:00:00]} 41. Rdd1 {[%emt 0:01:04]} Rg7 {[%emt 0:00:47]} 42. Qh2 {[%emt 0:00:29]} Qe8 {[%emt 0:00:33]} 43. Qh3 {[%emt 0:00:09]} Kb8 {[%emt 0:18:23]} 44. Rg2 {[%emt 0:00:55]} Qd7 {[%emt 0:06:21]} 45. Rdg1 {[%emt 0:00:55]} Kc7 {[%emt 0:00:06]} 46. Nb1 {[%emt 0:02:55]} Rf8 {[%emt 0:01:33]} 47. Nd2 {[%emt 0:00:08]} Be8 {[%emt 0:00:08]} 48. Kc3 {[%emt 0:01:16]} Nf7 {[%emt 0:00:12]} 49. Kb3 {[%emt 0:00:33]} Nh8 {[%emt 0:00:07]} 50. Bd1 {[%emt 0:00:37]} Kd8 {[%emt 0:02:00]} 51. Kc3 {[%emt 0:00:37]} Rh7 {[%emt 0:00:18]} 52. Rh2 {[%emt 0:01:04]} Ke7 {[%emt 0:00:29]} 53. Qf1 {[%emt 0:01:21]} Bf7 {[%emt 0:00:31]} 54. Be2 {[%emt 0:01:39]} Qe8 {[%emt 0:00:05]} 55. Kb3 {[%emt 0:00:38]} Kd8 {[%emt 0:03:03]} 56. Kc3 {[%emt 0:00:04]} Bxh5 {[%emt 0:07:07]} 57. gxh5 {[%emt 0:01:42]} Nxh5 {[%emt 0:00:07]} 58. Qh3 {[%emt 0:02:24]} Ng3 {[%emt 0:00:15]} 59. Rxg3 {[%emt 0:03:36]} fxg3 {[%emt 0:00:12]} 60. Qxg3 {[%emt 0:00:05]} Ng6 {[%emt 0:00:21]} 61. Rxh6 {[%emt 0:03:54]} Rg7 {[%emt 0:06:26]} 62. Qxg5+ {[%emt 0:05:13]} Qe7 {[%emt 0:00:05]} 63. Qxe7+ {[%emt 0:02:25]} Kxe7 {[%emt 0:00:06]} 64. Ng4 {[%emt 0:01:30]} Nf4 {[%emt 0:00:18]} 65. Bf1 {[%emt 0:02:26]} Rff7 {[%emt 0:00:12]} 66. Ne3 {[%emt 0:00:38]} Rg6 {[%emt 0:00:58]} 67. Rh8 {[%emt 0:01:41]} Rf8 {[%emt 0:00:48]} 68. Rh7+ {[%emt 0:00:32]} Rf7 {[%emt 0:00:31]} 69. Rh8 {[%emt 0:00:46]} Rf8 {[%emt 0:00:05]} 70. Rh7+ {[%emt 0:00:33]} Rf7 {[%emt 0:00:01]} 1/2-1/2

[Event "ESCC-65 2022"]
[Site "Lublin"]
[Date "2022.07.13"]
[Round "9.13"]
[White "Olszowski, Andrzej"]
[Black "Chubar, Vladimir"]
[Result "1-0"]
[ECO "A40"]
[WhiteElo "1600"]
[BlackElo "1809"]
[Annotator "NA"]
[PlyCount "107"]
[EventDate "2022.07.05"]
[EventType "swiss"]
[EventCountry "POL"]
[SourceTitle "playchess.com"]
[Source "ChessBase"]
[SourceQuality "1"]
[TimeControl "40/5400+30:1800+30"]

1. d4 {[%emt 0:00:07]} g6 {[%emt 0:00:21]} 2. Bg5 {[%emt 0:00:25]} Bg7 {[%emt 0:00:25]} 3. Nf3 {[%emt 0:00:16]} c5 {[%emt 0:00:24]} 4. c3 {[%emt 0:16:13]} Qb6 {[%emt 0:02:43]} 5. Bc1 {[%emt 0:03:33]} Nc6 {[%emt 0:01:52]} 6. e3 {[%emt 0:00:17]} d5 {[%emt 0:01:26]} 7. h3 {[%emt 0:00:33]} Nf6 {[%emt 0:01:22]} 8. Bd3 {[%emt 0:00:33]} O-O {[%emt 0:01:57]} 9. Nbd2 {[%emt 0:00:40]} cxd4 {[%emt 0:02:38]} 10. exd4 {[%emt 0:01:43]} e5 {[%emt 0:00:57]} 11. dxe5 {[%emt 0:00:31]} Nd7 {[%emt 0:02:27]} 12. O-O {[%emt 0:01:19]} Ndxe5 {[%emt 0:01:43]} 13. Bc2 {[%emt 0:03:01]} Be6 {[%emt 0:01:22]} 14. Nb3 {[%emt 0:03:38]} Nc4 {[%emt 0:02:24]} 15. Rb1 {[%emt 0:04:52]} d4 {[%emt 0:12:56]} 16. Nbxd4 {[%emt 0:04:38]} Rad8 {[%emt 0:03:13]} 17. b3 {[%emt 0:02:19]} N4e5 {[%emt 0:03:19]} 18. Bb2 {[%emt 0:08:31]} Rfe8 {[%emt 0:06:07]} 19. Re1 {[%emt 0:03:35]} Qa6 {[%emt 0:06:51]} 20. Ra1 {[%emt 0:01:14]} Nxf3+ {[%emt 0:03:12]} 21. Qxf3 {[%emt 0:00:27]} Nxd4 {[%emt 0:00:14]} 22. cxd4 {[%emt 0:00:28]} Bxd4 {[%emt 0:01:10]} 23. Bxd4 {[%emt 0:01:09]} Rxd4 {[%emt 0:00:06]} 24. Qe3 {[%emt 0:02:14]} Red8 {[%emt 0:02:58]} 25. Red1 {[%emt 0:05:14]} Rxd1+ {[%emt 0:00:49]} 26. Bxd1 {[%emt 0:04:37]} b6 {[%emt 0:01:13]} 27. Be2 {[%emt 0:01:12]} Qa5 {[%emt 0:00:34]} 28. Bf3 {[%emt 0:05:26]} Qa3 {[%emt 0:02:21]} 29. Qe5 {[%emt 0:02:04]} h5 {[%emt 0:02:28]} 30. Bxh5 Rd5 {[%emt 0:04:41]} 31. Qb8+ {[%emt 0:11:08]} Kh7 {[%emt 0:00:40]} 32. Bf3 {[%emt 0:03:28]} Rd2 {[%emt 0:00:35]} 33. Qe5 {[%emt 0:02:09]} Qb2 {[%emt 0:04:14]} 34. Qxb2 {[%emt 0:01:24]} Rxb2 {[%emt 0:00:12]} 35. h4 {[%emt 0:03:41]} Kg7 {[%emt 0:05:04]} 36. g4 {[%emt 0:01:48]} Kf6 {[%emt 0:02:17]} 37. Kg2 {[%emt 0:00:50]} Ke5 {[%emt 0:02:14]} 38. Re1+ {[%emt 0:00:20]} Kd6 {[%emt 0:00:21]} 39. Re2 {[%emt 0:01:02]} Rxe2 {[%emt 0:01:37]} 40. Bxe2 {[%emt 0:00:00]} Kc5 {[%emt 0:00:00]} 41. h5 {[%emt 0:00:41]} gxh5 {[%emt 0:00:39]} 42. gxh5 {[%emt 0:02:55]} Kd4 {[%emt 0:02:33]} 43. Kg3 {[%emt 0:01:53]} Ke5 {[%emt 0:00:09]} 44. Bc4 {[%emt 0:02:31]} Bf5 {[%emt 0:03:13]} 45. Bxf7 {[%emt 0:00:28]} Kf6 {[%emt 0:00:29]} 46. Bg6 {[%emt 0:01:11]} Be6 {[%emt 0:00:22]} 47. Kf4 {[%emt 0:00:27]} a5 {[%emt 0:01:24]} 48. Bc2 {[%emt 0:00:58]} b5 {[%emt 0:00:26]} 49. h6 {[%emt 0:00:47]} b4 {[%emt 0:00:19]} 50. h7 {[%emt 0:00:49]} Kg7 {[%emt 0:00:05]} 51. Ke5 {[%emt 0:00:20]} Bf7 {[%emt 0:00:23]} 52. Kd6 {[%emt 0:00:33]} a4 {[%emt 0:00:07]} 53. Kc5 {[%emt 0:00:25]} axb3 {[%emt 0:00:06]} 54. axb3 {[%emt 0:00:16]} 1-0